bitfinex/quotes_ETHUSD_20250824
["timestamp","ask_amount","ask_price","bid_price","bid_amount"]
[1756062822327,0.43090329,4944.0,4943.9,8.671]
[1756062822483,1.09167848,4944.0,4943.9,3.0]
[1756062822817,0.54940329,4944.0,4943.9,3.0]
[1756062823181,0.54940329,4944.0,4943.2,1.554]
[1756062823182,0.54940329,4944.0,4943.6,4.115]
[1756062823514,1.15367584,4943.9,4943.6,4.115]
[1756062823716,0.43090329,4943.8,4943.3,3.0]
[1756062823926,0.54207749,4943.6,4943.3,3.0]
[1756062824090,0.54207749,4943.6,4943.5,3.0]
[1756062824415,0.1218,4943.6,4943.5,3.0]
[1756062824936,0.1218,4943.6,4941.9,0.001]
[1756062824937,1.00412351,4943.6,4941.9,0.001]
[1756062825143,0.43372351,4943.5,4942.0,4.105]
[1756062825414,0.3083,4942.1,4941.9,0.001]
[1756062826880,0.3083,4942.1,4941.9,3.001]
[1756062827395,0.3083,4942.1,4941.9,0.001]
[1756062828421,0.66,4943.0,4941.9,0.001]
[1756062828623,0.62008794,4942.9,4941.9,0.001]
[1756062828930,0.1135,4942.0,4941.9,0.001]
[1756062830250,0.0044,4942.8,4941.9,0.001]
[1756062830400,0.43358422,4942.7,4941.9,0.001]
[1756062830597,1.8944,4943.5,4942.0,3.0]
[1756062830904,0.83271306,4943.4,4942.0,3.0]
[1756062831109,0.39905722,4943.4,4942.0,3.0]
[1756062831520,0.39905722,4943.4,4942.1,0.4643]
[1756062831728,1.23,4943.5,4942.1,0.4643]
[1756062832130,1.23,4943.5,4942.3,3.0]
[1756062832342,1.23,4943.5,4942.1,0.4643]
[1756062832511,1.23,4943.5,4942.5,3.0]
[1756062832902,1.23,4943.5,4941.9,0.001]
[1756062832903,0.0044,4942.6,4942.3,4.072]
[1756062833101,1.23,4943.5,4942.3,4.072]
[1756062833315,0.123,4943.4,4942.4,3.0]
[1756062833518,1.23,4942.9,4942.4,3.0]
[1756062833734,1.23,4942.9,4941.9,0.001]
[1756062833900,0.0044,4942.5,4941.9,3.001]
[1756062834112,1.23,4942.9,4941.9,3.001]
[1756062834342,0.123,4942.8,4941.9,3.001]
[1756062834724,0.123,4942.8,4941.9,0.001]
[1756062835020,0.123,4942.8,4941.9,3.001]
[1756062835221,1.353,4942.8,4941.9,0.001]
[1756062835422,0.3083,4942.0,4941.9,0.001]
[1756062836314,0.5721,4942.0,4941.9,0.001]
[1756062838503,1.2321,4942.0,4941.9,0.001]
[1756062838704,1.35531,4942.0,4941.9,0.001]
[1756062840256,0.43151,4942.0,4941.9,0.001]
[1756062840605,0.3083,4942.0,4941.9,0.001]
[1756062842306,2.1983,4942.0,4941.9,0.001]
[1756062843618,3.4283,4942.0,4941.9,0.001]
[1756062844742,7.4473,4942.0,4941.9,0.001]
[1756062845049,4.6583,4942.0,4941.9,0.001]
[1756062845344,5.12413,4942.0,4941.9,0.001]
[1756062845656,4.15893,4942.0,4941.9,0.001]
[1756062845841,5.12373,4942.0,4941.9,0.001]
[1756062846406,6.35373,4942.0,4941.9,0.001]
[1756062846607,5.38893,4942.0,4941.9,0.001]
[1756062846820,6.35373,4942.0,4941.9,0.001]
[1756062847021,6.04893,4942.0,4941.9,0.001]
[1756062847760,11.29393,4942.0,4941.9,0.001]
[1756062848917,12.82873,4942.0,4941.9,0.001]
[1756062849247,12.51793,4942.0,4941.9,0.001]
[1756062849449,12.82273,4942.0,4941.9,0.001]
[1756062849809,12.51793,4942.0,4941.9,0.001]
[1756062850532,13.74793,4942.0,4941.9,0.001]
[1756062851357,17.20813,4942.0,4941.9,0.001]
[1756062851916,18.43813,4942.0,4941.9,0.001]
[1756062852350,20.56313,4942.0,4941.9,0.001]
[1756062852862,20.71516369,4942.0,4941.9,0.001]
[1756062853219,21.94516369,4942.0,4941.9,0.001]
[1756062854723,23.17516369,4942.0,4941.9,0.001]
[1756062855361,5.785,4941.9,4941.8,0.001]
[1756062855561,7.81634363,4941.9,4941.8,0.001]
[1756062855725,8.38964363,4941.9,4941.8,0.001]
[1756062856739,6.26464363,4941.9,4941.8,0.001]
[1756062859230,9.80044363,4941.9,4941.8,0.001]
[1756062859439,6.14044363,4941.9,4941.8,0.001]
[1756062860069,7.37044363,4941.9,4941.8,0.001]
[1756062860362,8.03044363,4941.9,4941.8,0.001]
[1756062860586,4.06244363,4941.9,4941.8,0.001]
[1756062860873,3.40244363,4941.9,4941.8,0.001]
[1756062861080,7.22234363,4941.9,4941.8,0.001]
[1756062861380,7.22234363,4941.9,4941.8,0.7514]
[1756062861586,7.22234363,4941.9,4941.8,0.001]
[1756062861734,7.88234363,4941.9,4941.8,0.001]
[1756062862074,7.22134363,4941.9,4941.8,0.7514]
[1756062862254,5.19,4941.9,4941.8,0.7514]
[1756062862430,5.187,4941.9,4941.8,0.7514]
[1756062862634,5.186,4941.9,4941.8,0.7514]
[1756062862857,5.186,4941.9,4941.8,0.2866]
[1756062863220,5.846,4941.9,4941.8,0.7514]
[1756062863663,1.89,4941.9,4941.8,0.7514]
[1756062863845,5.181,4941.9,4941.8,0.7514]
[1756062864239,5.841,4941.9,4941.8,0.7514]
[1756062864667,7.25650058,4941.9,4941.8,0.001]
[1756062865334,7.25650058,4941.9,4941.8,0.2866]
[1756062865664,7.25650058,4941.9,4941.8,0.7514]
[1756062865865,7.24750058,4941.9,4941.8,0.7514]
[1756062866042,3.30550058,4941.9,4941.8,0.7514]
[1756062866447,7.24550058,4941.9,4941.8,0.7514]
[1756062866645,5.83,4941.9,4941.8,0.7514]
[1756062867787,5.824,4941.9,4941.8,0.7514]
[1756062868285,1.23,4941.9,4941.8,0.7514]
[1756062868482,0.43375,4941.9,4941.8,0.7514]
[1756062868797,15.99,4942.0,4941.8,0.7514]
[1756062869084,15.99,4942.0,4941.9,0.4648]
[1756062869385,15.99,4942.0,4941.9,0.7504]
[1756062869887,14.07719477,4942.0,4941.9,0.7504]
[1756062870948,14.07719477,4942.0,4941.9,7.408762]
[1756062871183,14.07719477,4942.0,4941.9,7.0667]
[1756062871847,2.84168128,4942.0,4941.9,7.0667]
[1756062872050,2.61194406,4942.0,4941.9,13.622751]
[1756062873283,2.46,4942.8,4942.0,3.0]
[1756062873482,2.46,4942.8,4942.7,0.2856]
[1756062873647,2.46,4942.8,4942.7,2.3054]
[1756062874050,2.46,4942.8,4942.7,7.329044]
[1756062874272,2.46,4942.8,4942.7,5.3054]
[1756062874484,2.46,4942.8,4942.7,9.8934]
[1756062874798,2.462,4942.9,4942.7,5.3054]
[1756062875091,2.462,4942.9,4942.8,6.240905]
[1756062875285,2.462,4942.9,4942.8,7.089094]
[1756062875480,2.462,4942.9,4942.8,6.839094]
[1756062876056,2.462,4942.9,4942.8,14.282751]
[1756062876261,2.46,4943.5,4942.9,3.66]
[1756062876490,2.46,4943.5,4943.3,0.2856]
[1756062876894,2.46,4943.5,4943.3,0.7504]
[1756062877407,2.46,4943.5,4943.3,7.6784]
[1756062878101,2.46,4943.5,4943.3,7.6774]
[1756062879816,1.23,4944.0,4943.4,3.66]
[1756062880026,1.23,4944.0,4943.8,0.2856]
[1756062880295,1.23,4944.0,4943.8,1.8406]
[1756062880607,0.002,4944.4,4943.9,3.0]
[1756062880904,0.002,4944.4,4944.3,0.2856]
[1756062881278,0.002,4944.4,4944.3,0.7504]
[1756062881663,0.002,4946.0,4944.4,3.66]
[1756062881896,0.002,4946.0,4944.9,0.2856]
[1756062882107,0.002,4946.0,4944.9,13.554886]
[1756062882292,0.002,4946.0,4944.9,13.9484]
[1756062882878,0.002,4946.0,4944.9,9.2204]
[1756062883074,0.002,4946.0,4944.9,11.5724]
[1756062883407,0.002,4946.0,4944.9,19.085751]
[1756062883609,0.002,4946.0,4944.9,11.5644]
[1756062883906,0.002,4946.0,4944.9,11.6124]
[1756062884985,0.002,4946.0,4944.9,9.2084]
[1756062885171,0.002,4946.0,4944.9,9.5454]
[1756062885375,0.002,4946.0,4944.9,9.2044]
[1756062885584,0.002,4946.0,4944.9,13.4444]
[1756062887176,0.002,4946.0,4944.9,9.5454]
[1756062887506,0.002,4946.0,4944.9,13.4344]
[1756062887895,0.002,4945.5,4944.9,13.4344]
[1756062888619,0.002,4945.5,4944.9,9.1944]
[1756062888911,0.002,4945.5,4944.9,8.44]
[1756062889075,0.002,4945.5,4944.9,4.555]
[1756062889278,0.002,4945.5,4944.9,8.438]
[1756062889479,8.9235,4945.0,4944.9,8.436]
[1756062889681,8.9235,4945.0,4944.9,4.555]
[1756062889901,8.612,4945.0,4944.9,8.435]
[1756062890185,8.9235,4945.0,4944.9,4.555]
[1756062890409,8.9235,4945.0,4944.9,8.432]
[1756062890609,8.921424,4945.0,4944.9,8.432]
[1756062891914,8.609924,4945.0,4944.9,8.7467]
[1756062892690,8.609924,4945.0,4944.9,9.1942]
[1756062894894,8.609924,4945.0,4944.9,8.7467]
[1756062895302,8.609924,4945.0,4944.9,8.7287]
[1756062896327,8.609924,4945.0,4944.9,8.7277]
[1756062896619,8.609924,4945.0,4944.9,9.1752]
[1756062896823,8.609924,4945.0,4944.9,5.3172]
[1756062897192,8.609924,4945.0,4944.9,9.1682]
[1756062897933,8.609924,4945.0,4944.9,8.7207]
[1756062898096,8.609924,4945.0,4944.9,9.1682]
[1756062898937,8.609924,4945.0,4944.9,8.7207]
[1756062900395,8.609924,4945.0,4944.9,8.7117]
[1756062900623,8.609924,4945.0,4944.9,9.1592]
[1756062902028,8.921424,4945.0,4944.9,4.555]
[1756062902541,9.357924,4945.0,4944.9,8.386]
[1756062903139,8.921424,4945.0,4944.9,8.386]
[1756062903426,8.921424,4945.0,4944.9,8.384]
[1756062904018,8.609924,4945.0,4944.9,8.6987]
[1756062904328,8.611924,4945.0,4944.9,8.6987]
[1756062904529,8.611924,4945.0,4944.9,9.1462]
[1756062904916,8.611924,4945.0,4944.9,13.3862]
[1756062905827,6.04239809,4945.0,4944.9,13.3862]
[1756062906915,6.04239809,4945.0,4944.9,9.1097]
[1756062907095,6.04239809,4945.0,4944.9,13.3752]
[1756062907431,6.04239809,4945.0,4944.9,13.982488]
[1756062908651,6.04239809,4945.0,4944.9,9.402288]
[1756062908946,6.04239809,4945.0,4944.9,12.603]
[1756062910328,6.35389809,4945.0,4944.9,8.795]
[1756062910527,6.79039809,4945.0,4944.9,12.597]
[1756062911418,6.79039809,4945.0,4944.9,8.357]
[1756062912207,6.35389809,4945.0,4944.9,8.357]
[1756062912816,6.79499809,4945.0,4944.9,8.357]
[1756062913232,6.79499809,4945.0,4944.9,4.555]
[1756062913429,6.35389809,4945.0,4944.9,8.352]
[1756062913817,6.35389809,4945.0,4944.9,8.349]
[1756062916334,6.35389809,4945.0,4944.9,12.589]
[1756062916510,6.04239809,4945.0,4944.9,12.589]
[1756062916922,6.04239809,4945.0,4944.9,12.8895]
[1756062917127,6.04239809,4945.0,4944.9,13.3402]
[1756062919425,6.04239809,4945.0,4944.9,12.8755]
[1756062919832,6.04239809,4945.0,4944.9,13.3262]
[1756062920854,6.04239809,4945.0,4944.9,12.8755]
[1756062921029,6.04239809,4945.0,4944.9,13.3262]
[1756062922027,2.19629345,4945.0,4944.9,13.3262]
[1756062923284,1.9533686,4945.0,4944.9,13.3262]
[1756062923453,1.9533686,4945.0,4944.9,9.0955]
[1756062923666,1.9533686,4945.0,4944.9,12.8605]
[1756062924156,1.9533686,4945.0,4944.9,12.8575]
[1756062924363,1.9533686,4945.0,4944.9,5.3062]
[1756062924663,1.9533686,4945.0,4944.9,9.0652]
[1756062926744,1.9533686,4945.0,4944.9,9.672488]
[1756062927136,0.002,4945.5,4945.0,3.0]
[1756062927347,0.002,4945.5,4945.4,0.3005]
[1756062927659,0.002,4945.5,4945.4,7.0505]
[1756062928831,0.002,4945.5,4945.4,7.5012]
[1756062929661,0.002,4946.0,4945.4,7.5012]
[1756062929662,0.002,4946.0,4945.4,4.5012]
[1756062930159,0.002,4946.0,4945.4,4.0505]
[1756062930967,0.2877,4945.5,4945.4,3.75]
[1756062931263,0.2877,4945.5,4945.4,6.738]
[1756062931763,0.4411,4945.9,4945.5,3.0]
[1756062931960,0.4411,4945.9,4945.7,3.0]
[1756062932164,0.2877,4945.8,4945.2,0.607288]
[1756062932366,0.7288,4945.8,4945.4,3.0]
[1756062932570,0.7288,4945.8,4945.6,3.0]
[1756062932864,0.7288,4945.8,4945.7,6.733]
[1756062933070,0.7288,4945.8,4945.7,3.0]
[1756062933241,0.7288,4945.8,4945.7,6.731]
[1756062934607,0.002,4946.0,4945.8,3.0]
[1756062934807,0.002,4946.0,4945.9,6.727]
[1756062935244,0.2897,4946.0,4945.9,6.727]
[1756062935451,0.5665,4946.0,4945.9,6.727]
[1756062937869,0.2897,4946.0,4945.9,6.727]
[1756062938592,0.002,4946.0,4945.9,6.727]
[1756062939373,0.2896,4946.0,4945.9,6.727]
[1756062939572,0.5665,4946.0,4945.9,6.713]
[1756062940172,0.5665,4946.0,4945.9,3.0]
[1756062940388,0.5665,4946.0,4945.9,6.711]
[1756062940689,0.002,4946.0,4945.9,7.0115]
[1756062941058,0.002,4946.0,4945.9,7.4622]
[1756062941259,0.002,4946.0,4945.9,7.0115]
[1756062941860,0.002,4946.0,4945.9,6.711]
[1756062942271,0.2897,4946.0,4945.9,6.711]
[1756062942479,0.2897,4946.0,4945.9,3.0]
[1756062942687,0.2897,4946.0,4945.9,6.709]
[1756062942883,0.2897,4946.0,4945.9,3.0]
[1756062943090,0.7504,4946.0,4945.9,6.705]
[1756062943689,0.3131,4946.0,4945.9,6.705]
[1756062944580,0.7738,4946.0,4945.9,6.705]
[1756062944995,0.3131,4946.0,4945.9,6.705]
[1756062947181,0.002,4946.0,4945.9,6.996]
[1756062947576,0.002,4946.0,4945.9,7.4478]
[1756062948170,0.002,4946.0,4945.9,6.981]
[1756062949171,0.002,4946.0,4945.9,7.588288]
[1756062949618,1.23,4946.3,4945.9,7.588288]
[1756062949619,0.74331039,4946.3,4946.0,3.0]
[1756062949913,1.002,4947.0,4946.2,3.291]
[1756062950225,1.002,4947.0,4946.9,0.1008]
[1756062950379,0.67754026,4947.0,4946.9,7.5296]
[1756062950582,0.02862078,4947.0,4946.9,7.5296]
[1756062950780,0.4607,4948.6,4947.0,10.768602]
[1756062951021,0.4607,4949.0,4947.2,3.0]
[1756062951307,0.4607,4949.0,4948.5,0.1008]
[1756062951507,0.2342,4948.6,4948.1,1.554]
[1756062951712,0.4584,4949.1,4948.5,0.1008]
[1756062951876,0.4584,4949.1,4948.3,3.0]
[1756062951877,0.4584,4949.1,4948.3,1.554]
[1756062952077,0.2365,4948.4,4948.2,3.686]
[1756062952278,0.2365,4948.4,4948.3,3.0]
[1756062952494,0.2365,4948.4,4948.3,3.1008]
[1756062952905,0.6927,4948.4,4948.3,3.1008]
[1756062953930,0.6927,4948.4,4948.3,0.1008]
[1756062959389,2.0147,4949.2,4948.3,0.3918]
[1756062959590,0.62638,4949.2,4948.5,3.0]
[1756062959790,0.002,4949.4,4949.1,0.1008]
[1756062960089,0.3111,4949.2,4949.1,3.7858]
[1756062960290,0.002,4949.4,4949.2,3.0]
[1756062960624,0.002,4949.4,4949.1,3.7858]
[1756062961118,0.002,4949.4,4949.3,0.291]
[1756062962411,0.002,4949.4,4949.3,0.7428]
[1756062962612,0.002,4949.4,4949.3,5.528]
[1756062962830,0.002,4949.4,4949.3,9.586645]
[1756062963745,0.4607,4951.3,4949.4,3.0]
[1756062964025,0.20137,4951.2,4949.5,0.4518]
[1756062964193,0.20137,4951.2,4949.7,3.0]
[1756062964392,0.20137,4951.2,4951.1,0.1008]
[1756062964598,0.3111,4951.2,4951.1,0.1008]
[1756062965302,0.7718,4951.2,4951.1,0.1008]
[1756062965627,0.3111,4951.2,4951.1,0.1008]
[1756062965987,0.7718,4951.2,4951.1,0.1008]
[1756062969205,0.3111,4951.2,4951.1,0.1008]
[1756062969815,1.553,4952.2,4951.1,0.8436]
[1756062970014,0.20137,4952.1,4952.0,0.1008]
[1756062970233,0.97317,4952.1,4952.0,0.1008]
[1756062971035,0.20137,4952.1,4952.0,0.3918]
[1756062971202,1.23,4952.8,4952.0,0.3918]
[1756062971407,1.23,4952.8,4952.6,0.1008]
[1756062971721,0.3111,4952.7,4952.6,0.1008]
[1756062971927,0.7718,4952.7,4952.6,0.1008]
[1756062972940,0.3111,4952.7,4952.6,0.1008]
[1756062973323,1.07251,4952.7,4952.6,0.1008]
[1756062973836,0.62051,4952.7,4952.6,0.1008]
[1756062974035,0.30941,4952.7,4952.6,0.1008]
[1756062974331,1.23,4952.8,4952.6,0.4133]
[1756062974540,1.23,4952.8,4952.6,0.8784]
[1756062974847,1.23,4952.8,4952.6,0.4133]
[1756062975534,1.23,4952.8,4952.7,0.4651]
[1756062975733,1.23,4952.8,4952.7,0.8784]
[1756062976838,1.23,4952.8,4952.7,0.4133]
[1756062977130,1.6642,4952.8,4951.9,3.0]
[1756062977330,2.1162,4952.8,4952.0,0.606545]
[1756062979015,2.1162,4952.8,4952.0,0.76068245]
[1756062979814,1.5412,4952.8,4952.0,0.76068245]
[1756062981536,1.5412,4952.8,4952.0,3.76068245]
[1756062982315,1.23,4952.8,4952.7,0.3125]
[1756062983111,1.23,4952.8,4952.7,0.7776]
[1756062985929,1.23,4952.8,4952.7,7.4556]
[1756062986647,1.23,4952.8,4952.7,3.3125]
[1756062986846,1.23,4952.8,4952.7,6.678]
[1756062986847,1.4727,4952.8,4952.7,6.678]
[1756062987018,1.4727,4952.8,4952.7,3.7788]
[1756062987456,1.23,4952.8,4952.7,0.1008]
[1756062987621,1.23,4952.8,4952.7,3.7788]
[1756062988032,1.4727,4952.8,4952.7,0.1008]
[1756062988231,2.06987,4952.8,4952.7,0.1008]
[1756062988837,1.61997,4952.8,4952.7,0.1008]
[1756062989062,1.4727,4952.8,4952.7,0.1008]
[1756062989639,1.9226,4952.8,4952.7,0.1008]
[1756062989838,1.23,4952.8,4952.7,0.1008]
[1756062990070,1.23,4952.8,4952.7,0.4133]
[1756062990443,1.23,4952.8,4952.7,0.8784]
[1756062991546,1.23,4952.8,4952.7,7.5544]
[1756062991745,1.23,4952.8,4952.7,3.4133]
[1756062992065,1.23,4952.8,4952.7,7.5544]
[1756062993674,1.23,4952.8,4952.7,7.0893]
[1756062994053,1.23,4952.8,4952.7,3.4133]
[1756062994251,1.23,4952.8,4952.7,7.5544]
[1756062995248,1.5412,4952.8,4952.5,0.606462]
[1756062995447,1.5412,4952.8,4951.3,1.65027741]
[1756062995448,0.15412,4952.7,4952.2,3.675]
[1756062995686,0.15412,4952.7,4952.3,3.0]
[1756062996037,0.452,4952.6,4951.6,0.4651]
[1756062996239,0.3112,4952.4,4951.8,3.0]
[1756062996482,0.3112,4952.4,4951.9,3.675]
[1756062996664,0.3112,4952.4,4951.7,0.606554]
[1756062996971,0.3112,4952.4,4951.8,3.675]
[1756062997490,0.3112,4952.4,4951.7,0.606554]
[1756062997491,0.452,4952.3,4951.7,0.606554]
[1756062997690,0.3112,4951.8,4951.7,0.606554]
[1756062997890,0.3112,4951.8,4950.4,1.552]
[1756062997891,0.7632,4951.8,4951.0,3.674]
[1756062998186,0.7632,4951.8,4951.4,0.606673]
[1756062998969,0.3112,4951.8,4951.4,0.606673]
[1756062999290,0.452,4951.7,4951.4,0.606673]
[1756062999463,0.3112,4951.5,4951.4,0.606673]
[1756063000601,1.23,4952.8,4951.4,0.919173]
[1756063000763,0.575,4952.7,4951.6,3.0]
[1756063002350,0.575,4952.7,4951.4,1.071773]
[1756063002351,0.123,4952.7,4951.4,0.606673]
[1756063002556,0.452,4952.6,4951.7,3.673]
[1756063002975,1.23,4952.8,4951.8,3.0]
[1756063003167,1.23,4952.8,4951.8,3.4281]
[1756063003656,1.23,4952.8,4952.7,0.298]
[1756063003855,1.23,4952.8,4952.7,3.7261]
[1756063004468,1.23,4952.8,4952.7,14.204835]
[1756063004692,0.755,4952.8,4952.7,14.204835]
[1756063005291,0.755,4952.8,4952.7,14.305635]
[1756063007666,0.755,4952.8,4952.7,14.864835]
[1756063007970,0.51251907,4952.8,4952.7,16.98473569]
[1756063008403,0.04926248,4952.8,4952.7,16.98473569]
[1756063010500,0.04926248,4952.8,4952.7,14.965635]
[1756063010797,0.04926248,4952.8,4952.7,10.955436]
[1756063010996,0.04926248,4952.8,4952.7,10.65085]
[1756063011218,0.04926248,4952.8,4952.7,5.556184]
[1756063011373,0.04926248,4952.8,4952.7,8.276698]
[1756063011706,0.04926248,4952.8,4952.7,4.880661]
[1756063011918,0.04926248,4952.8,4952.7,11.551661]
[1756063012070,0.04926248,4952.8,4952.7,11.550661]
[1756063012671,0.04926248,4952.8,4952.7,19.098535]
[1756063013376,0.84926248,4952.8,4952.7,16.163434]
[1756063013583,0.84926248,4952.8,4952.7,12.493434]
[1756063013793,0.84926248,4952.8,4952.7,9.226184]
[1756063014906,0.84926248,4952.8,4952.7,19.526635]
[1756063015206,0.84926248,4952.8,4952.7,20.186635]
[1756063017413,0.84926248,4952.8,4952.7,19.629314]
[1756063017974,0.84926248,4952.8,4952.7,20.186635]
[1756063018797,0.84926248,4952.8,4952.7,16.088535]
[1756063019004,0.84926248,4952.8,4952.7,15.891461]
[1756063019208,0.84926248,4952.8,4952.7,13.464184]
[1756063019524,0.84926248,4952.8,4952.7,16.335809]
[1756063019924,0.84926248,4952.8,4952.7,16.037809]
[1756063020506,0.84926248,4952.8,4952.7,16.335809]
[1756063021218,0.84926248,4952.8,4952.7,23.336535]
[1756063021821,0.84926248,4952.8,4952.7,23.038535]
[1756063021993,0.84926248,4952.8,4952.7,23.336535]
[1756063022189,0.84926248,4952.8,4952.7,14.552284]
[1756063022415,0.84926248,4952.8,4952.7,24.424635]
[1756063022795,0.84926248,4952.8,4952.7,33.55373569]
[1756063022988,0.84926248,4952.8,4952.7,31.534635]
[1756063023895,0.84926248,4952.8,4952.7,27.438535]
[1756063024100,0.84926248,4952.8,4952.7,30.147535]
[1756063024294,0.84926248,4952.8,4952.7,26.480535]
[1756063024524,0.84926248,4952.8,4952.7,30.146535]
[1756063024822,0.84926248,4952.8,4952.7,23.334535]
[1756063025124,0.84926248,4952.8,4952.7,23.036535]
[1756063025294,1.15956248,4952.8,4952.7,19.370535]
[1756063025491,1.59166248,4952.8,4952.7,2.258184]
[1756063025719,1.59166248,4952.8,4952.7,5.923184]
[1756063025923,1.59166248,4952.8,4952.7,8.923184]
[1756063026125,1.59166248,4952.8,4952.7,0.707184]
[1756063026291,1.59166248,4952.8,4952.7,4.372184]
[1756063026492,1.75082873,4952.8,4952.7,0.707184]
[1756063027523,2.41082873,4952.8,4952.7,0.1008]
[1756063027725,2.41082873,4952.8,4952.6,0.001]
[1756063027927,0.4321,4952.7,4952.6,0.001]
[1756063028094,1.14866287,4952.7,4952.6,0.001]
[1756063035809,1.80866287,4952.7,4952.6,0.001]
[1756063045421,5.46966287,4952.7,4952.6,0.001]
[1756063046338,4.90946287,4952.7,4952.6,0.001]
[1756063046938,5.56946287,4952.7,4952.6,0.001]
[1756063047807,5.56946287,4952.7,4952.6,0.298]
[1756063047808,0.40626287,4952.7,4952.6,0.298]
[1756063048039,0.84926248,4952.8,4952.6,0.3988]
[1756063048215,0.84926248,4952.8,4952.6,0.8367]
[1756063048415,0.84926248,4952.8,4952.7,0.4379]
[1756063048644,0.84926248,4952.8,4952.7,0.7349]
[1756063052136,0.84926248,4952.8,4952.7,0.297]
[1756063052337,0.84926248,4952.8,4952.6,0.1018]
[1756063054250,0.84926248,4952.8,4952.7,0.297]
[1756063054939,0.84926248,4952.8,4952.7,0.23973912]
[1756063057220,0.84926248,4952.8,4952.7,0.67763912]
[1756063059365,0.84926248,4952.8,4952.7,0.23973912]
[1756063059868,0.84926248,4952.8,4952.6,0.1018]
[1756063060216,0.84926248,4952.8,4952.7,0.297]
[1756063061872,1.15406248,4952.8,4952.6,0.1018]
[1756063062223,0.4745,4952.7,4952.6,0.1018]
[1756063062466,0.7793,4952.7,4952.6,0.1018]
[1756063062672,0.94215625,4952.7,4952.6,0.1018]
[1756063062852,0.46615625,4952.7,4952.6,0.1018]
[1756063063037,0.46615625,4952.7,4952.6,0.001]
[1756063063374,0.92445625,4952.7,4952.6,0.001]
[1756063063666,0.16285625,4952.7,4952.6,0.001]
[1756063063825,0.84926248,4952.8,4952.6,0.3873]
[1756063064026,0.84926248,4952.8,4952.6,0.2865]
[1756063064251,0.84926248,4952.8,4952.7,7.8003]
[1756063064423,0.84926248,4952.8,4952.7,8.0858]
[1756063065358,0.84926248,4952.8,4952.7,3.8458]
[1756063067458,0.84926248,4952.8,4952.7,7.4958]
[1756063067957,0.84926248,4952.8,4952.7,7.0363]
[1756063068163,0.84926248,4952.8,4952.7,7.4958]
[1756063068458,0.84926248,4952.8,4952.7,7.0363]
[1756063068628,0.84926248,4952.8,4952.7,7.4958]
[1756063070344,0.84926248,4952.8,4952.7,7.6981]
[1756063070643,0.84926248,4952.8,4952.7,7.4958]
[1756063071027,0.84926248,4952.8,4952.7,3.3863]
[1756063071270,0.84926248,4952.8,4952.7,7.0353]
[1756063072358,0.84926248,4952.8,4952.7,3.1008]
[1756063073030,1.15256248,4952.8,4952.7,0.1008]
[1756063073231,1.72611873,4952.8,4952.7,0.1008]
[1756063073876,1.26781873,4952.8,4952.7,0.1008]
[1756063074081,0.84926248,4952.8,4952.7,0.3863]
[1756063074232,0.84926248,4952.8,4952.7,7.6263]
[1756063074586,0.84926248,4952.8,4952.7,14.277351]
[1756063074733,0.14723407,4952.8,4952.7,14.9845]
[1756063074933,0.14723407,4952.8,4952.7,16.39725169]
[1756063075238,0.14723407,4952.8,4952.7,16.76429652]
[1756063075436,0.14723407,4952.8,4952.7,16.54448669]
[1756063077028,0.02028132,4952.8,4952.7,16.54448669]
[1756063079069,0.02028132,4952.8,4952.7,20.18948669]
[1756063079360,0.02028132,4952.8,4952.7,18.55672869]
[1756063079666,0.02028132,4952.8,4952.7,20.03897569]
[1756063080735,0.02028132,4952.8,4952.7,24.42948669]
[1756063080934,0.02028132,4952.8,4952.7,20.18948669]
[1756063081173,0.02028132,4952.8,4952.7,19.72998669]
[1756063081467,0.02028132,4952.8,4952.7,19.84899652]
[1756063081638,0.002,4953.3,4953.2,2.67889687]
[1756063081845,1e-08,4953.8,4953.7,5.67869309]
[1756063082167,1e-08,4953.8,4953.7,19.19404409]
[1756063082755,1e-08,4953.8,4953.7,20.51368209]
[1756063082955,1e-08,4953.8,4953.7,19.19404409]
[1756063083763,1e-08,4953.8,4953.7,16.15702509]
[1756063084064,1e-08,4953.8,4953.7,19.79902509]
[1756063084468,1e-08,4953.8,4953.7,16.15702509]
[1756063084634,4.79,4955.0,4953.7,16.15702509]
[1756063084635,4.79,4955.0,4953.8,3.66]
[1756063084836,4.79,4955.1,4955.0,9.35481]
[1756063085075,0.4583,4955.7,4955.0,9.35481]
[1756063085076,4.79,4955.7,4955.2,3.0]
[1756063085279,0.4583,4955.6,4955.4,3.0]
[1756063085478,0.3033,4955.5,4955.4,3.0]
[1756063085643,0.7616,4955.5,4955.4,9.089505]
[1756063085850,0.7616,4955.5,4955.4,9.19239202]
[1756063086157,6.02,4955.9,4955.5,0.66]
[1756063086355,6.02,4955.9,4955.6,3.641]
[1756063086556,6.02,4955.9,4955.7,3.0]
[1756063086762,6.02,4955.9,4955.8,6.64]
[1756063086964,6.3233,4955.9,4955.8,3.14827724]
[1756063087483,6.7816,4955.9,4955.8,6.78827724]
[1756063087844,6.02,4955.9,4955.8,6.78827724]
[1756063088071,6.02,4955.9,4955.8,17.32062824]
[1756063090156,6.02,4955.9,4955.8,13.68062824]